[Event "Live Chess"]
[Site "Chess.com"]
[Date "2024.06.02"]
[Round "-"]
[White "MaksymYurii"]
[Black "StoreySniper"]
[Result "0-1"]
[WhiteElo "952"]
[BlackElo "2531"]
[TimeControl "300"]
[EndTime "16:36:10 PDT"]
[Termination "StoreySniper won on time"]

1. e4 {[%clk 0:04:59.1]} 1... g6 {[%clk 0:04:59]} 2. Nc3 {[%clk 0:04:37.6]} 2...
Bg7 {[%clk 0:04:57.1]} 3. d4 {[%clk 0:04:36.7]} 3... c5 {[%clk 0:04:55.4]} 4. e5
{[%clk 0:04:33.3]} 4... cxd4 {[%clk 0:04:53.8]} 5. Qxd4 {[%clk 0:04:31.8]} 5...
Nc6 {[%clk 0:04:53.5]} 6. Qe4 {[%clk 0:04:27.7]} 6... Bxe5 {[%clk 0:04:51.7]} 7.
Nf3 {[%clk 0:04:17.5]} 7... Nf6 {[%clk 0:04:49.8]} 8. Qe2 {[%clk 0:04:12.4]}
8... Bxc3+ {[%clk 0:04:46.9]} 9. bxc3 {[%clk 0:04:11.2]} 9... Qa5 {[%clk
0:04:46.2]} 10. Bd2 {[%clk 0:04:02.9]} 10... d6 {[%clk 0:04:41.3]} 11. g3 {[%clk
0:03:47.5]} 11... Bg4 {[%clk 0:04:37.7]} 12. Bg2 {[%clk 0:03:45.6]} 12... Ne5
{[%clk 0:04:34]} 13. O-O {[%clk 0:03:39.5]} 13... Qd5 {[%clk 0:04:24.3]} 14.
Nxe5 {[%clk 0:03:15.5]} 14... Bxe2 {[%clk 0:04:20.4]} 15. Bxd5 {[%clk
0:03:13.9]} 15... Nxd5 {[%clk 0:04:17.3]} 16. Rfe1 {[%clk 0:03:01.5]} 16... Ba6
{[%clk 0:04:05]} 17. Nd3 {[%clk 0:02:45.8]} 17... Rc8 {[%clk 0:04:00.6]} 18. Nb4
{[%clk 0:02:23.5]} 18... Nxb4 {[%clk 0:03:57.2]} 19. cxb4 {[%clk 0:02:21.4]}
19... Rxc2 {[%clk 0:03:57.1]} 20. Bg5 {[%clk 0:02:11.1]} 20... e6 {[%clk
0:03:55.8]} 21. Bf6 {[%clk 0:02:08.9]} 21... Rg8 {[%clk 0:03:54.2]} 22. a4
{[%clk 0:01:58]} 22... Bc4 {[%clk 0:03:50.9]} 23. Rad1 {[%clk 0:01:49.5]} 23...
Kd7 {[%clk 0:03:42.1]} 24. Be5 {[%clk 0:01:44.2]} 24... Bd5 {[%clk 0:03:38.9]}
25. Bd4 {[%clk 0:01:39.1]} 25... a6 {[%clk 0:03:35.3]} 26. b5 {[%clk 0:01:29.9]}
26... axb5 {[%clk 0:03:31.1]} 27. axb5 {[%clk 0:01:28.6]} 27... Rgc8 {[%clk
0:03:29.5]} 28. b6 {[%clk 0:01:23.1]} 28... R8c4 {[%clk 0:03:26.3]} 29. Be3
{[%clk 0:01:01.4]} 29... f5 {[%clk 0:03:19.8]} 30. Ra1 {[%clk 0:00:56.2]} 30...
Bc6 {[%clk 0:03:16.2]} 31. Red1 {[%clk 0:00:47.8]} 31... e5 {[%clk 0:03:11.9]}
32. f4 {[%clk 0:00:41.3]} 32... Rg2+ {[%clk 0:03:05.8]} 33. Kf1 {[%clk
0:00:37.9]} 33... exf4 {[%clk 0:02:56.7]} 34. Bxf4 {[%clk 0:00:35.9]} 34...
Rxf4+ {[%clk 0:02:52.5]} 35. gxf4 {[%clk 0:00:32.9]} 35... Rxh2 {[%clk
0:02:51.8]} 36. Re1 {[%clk 0:00:16.6]} 36... Rb2 {[%clk 0:02:45]} 37. Rab1
{[%clk 0:00:14.1]} 37... Rh2 {[%clk 0:02:40.8]} 38. Kg1 {[%clk 0:00:06.5]} 38...
Rh4 {[%clk 0:02:39]} 39. Kf2 {[%clk 0:00:03.5]} 39... Rxf4+ {[%clk 0:02:37.1]}
40. Kg3 {[%clk 0:00:02.5]} 40... Rg4+ {[%clk 0:02:35.8]} 41. Kh3 {[%clk
0:00:00.9]} 41... h5 {[%clk 0:02:35.7]} 0-1

[Event "Live Chess"]
[Site "Chess.com"]
[Date "2024.06.02"]
[Round "-"]
[White "Dhaydon19"]
[Black "toog"]
[Result "1/2-1/2"]
[WhiteElo "2676"]
[BlackElo "2606"]
[TimeControl "300"]
[EndTime "16:36:21 PDT"]
[Termination "Game drawn by repetition"]

1. Nf3 {[%clk 0:04:58.2]} 1... Nf6 {[%clk 0:04:58.3]} 2. e3 {[%clk 0:04:57.9]}
2... g6 {[%clk 0:04:57.7]} 3. b3 {[%clk 0:04:57.5]} 3... Bg7 {[%clk 0:04:57.2]}
4. Bb2 {[%clk 0:04:57.2]} 4... O-O {[%clk 0:04:56.8]} 5. Be2 {[%clk 0:04:56.7]}
5... d6 {[%clk 0:04:56]} 6. O-O {[%clk 0:04:56.5]} 6... e5 {[%clk 0:04:55.2]} 7.
c4 {[%clk 0:04:55.9]} 7... Nc6 {[%clk 0:04:53.7]} 8. Nc3 {[%clk 0:04:55.2]} 8...
Re8 {[%clk 0:04:52.1]} 9. d3 {[%clk 0:04:54.5]} 9... e4 {[%clk 0:04:46.2]} 10.
dxe4 {[%clk 0:04:52.4]} 10... Nxe4 {[%clk 0:04:44.7]} 11. Qc2 {[%clk 0:04:51.4]}
11... Bf5 {[%clk 0:04:42.9]} 12. Nxe4 {[%clk 0:04:49.1]} 12... Bxe4 {[%clk
0:04:42.8]} 13. Qd2 {[%clk 0:04:48.1]} 13... a5 {[%clk 0:04:32]} 14. Bxg7 {[%clk
0:04:45.6]} 14... Kxg7 {[%clk 0:04:29]} 15. Rac1 {[%clk 0:04:45.3]} 15... a4
{[%clk 0:04:10.1]} 16. b4 {[%clk 0:04:41.1]} 16... a3 {[%clk 0:04:05.5]} 17. b5
{[%clk 0:04:39.8]} 17... Ne5 {[%clk 0:03:59.5]} 18. Nd4 {[%clk 0:04:38.9]} 18...
Qf6 {[%clk 0:03:47.4]} 19. f3 {[%clk 0:04:35.7]} 19... Bf5 {[%clk 0:03:46.4]}
20. e4 {[%clk 0:04:31.3]} 20... Bc8 {[%clk 0:03:39.1]} 21. Rfd1 {[%clk
0:04:22.3]} 21... Nd7 {[%clk 0:03:34.6]} 22. Qc3 {[%clk 0:04:20.1]} 22... Nc5
{[%clk 0:03:29.2]} 23. Rd2 {[%clk 0:04:15.8]} 23... Kg8 {[%clk 0:03:24.2]} 24.
Nb3 {[%clk 0:04:08.1]} 24... Qxc3 {[%clk 0:03:18.2]} 25. Rxc3 {[%clk 0:04:06.4]}
25... Na4 {[%clk 0:03:17.5]} 26. Re3 {[%clk 0:04:04.6]} 26... Be6 {[%clk
0:03:15.8]} 27. Nd4 {[%clk 0:04:00.9]} 27... Nc5 {[%clk 0:03:14.6]} 28. Rc2
{[%clk 0:03:57.4]} 28... Ra4 {[%clk 0:03:10.9]} 29. Rcc3 {[%clk 0:03:55.1]}
29... Rea8 {[%clk 0:03:08.5]} 30. Nc2 {[%clk 0:03:54.3]} 30... f5 {[%clk
0:02:46.5]} 31. exf5 {[%clk 0:03:42.5]} 31... Bxf5 {[%clk 0:02:46.4]} 32. Nd4
{[%clk 0:03:38.5]} 32... Kf7 {[%clk 0:02:40.4]} 33. f4 {[%clk 0:03:31.2]} 33...
Ne6 {[%clk 0:02:28.8]} 34. Nxe6 {[%clk 0:03:15.7]} 34... Bxe6 {[%clk 0:02:28.7]}
35. g3 {[%clk 0:03:08.5]} 35... b6 {[%clk 0:02:20.4]} 36. Kf2 {[%clk 0:03:03]}
36... Rb4 {[%clk 0:02:09]} 37. Rb3 {[%clk 0:02:58.1]} 37... Rxb3 {[%clk
0:02:03.8]} 38. Rxb3 {[%clk 0:02:55.8]} 38... Ra4 {[%clk 0:02:03.2]} 39. Rc3
{[%clk 0:02:54.4]} 39... Bf5 {[%clk 0:01:57.1]} 40. Bd1 {[%clk 0:02:50.2]} 40...
Ra8 {[%clk 0:01:46.5]} 41. Ke3 {[%clk 0:02:46.8]} 41... Kf6 {[%clk 0:01:43.9]}
42. Kd2 {[%clk 0:02:41]} 42... Be6 {[%clk 0:01:37.4]} 43. Bc2 {[%clk 0:02:35.2]}
43... d5 {[%clk 0:01:35.4]} 44. cxd5 {[%clk 0:02:29]} 44... Bxd5 {[%clk
0:01:35.3]} 45. Bb1 {[%clk 0:02:27.8]} 45... Ra5 {[%clk 0:01:32.2]} 46. Kc1
{[%clk 0:02:22.1]} 46... Rxb5 {[%clk 0:01:28.9]} 47. Rxa3 {[%clk 0:02:21.3]}
47... Be6 {[%clk 0:01:24.4]} 48. Bd3 {[%clk 0:02:13.9]} 48... Rh5 {[%clk
0:01:21.8]} 49. h4 {[%clk 0:02:11.8]} 49... Rc5+ {[%clk 0:01:20.4]} 50. Kd2
{[%clk 0:02:10.4]} 50... Bf5 {[%clk 0:01:18.8]} 51. Be2 {[%clk 0:02:07.2]} 51...
Rc2+ {[%clk 0:01:17]} 52. Kd1 {[%clk 0:02:06.3]} 52... Rc5 {[%clk 0:01:15.3]}
53. Re3 {[%clk 0:01:56.2]} 53... Be6 {[%clk 0:01:11.3]} 54. a3 {[%clk 0:01:55]}
54... Bf5 {[%clk 0:01:09.2]} 55. Ke1 {[%clk 0:01:47.2]} 55... h5 {[%clk
0:01:08.1]} 56. Bd1 {[%clk 0:01:44.8]} 56... Rc4 {[%clk 0:01:04.3]} 57. Kd2
{[%clk 0:01:41.6]} 57... b5 {[%clk 0:01:00.5]} 58. Rc3 {[%clk 0:01:35]} 58...
Rxc3 {[%clk 0:00:56]} 59. Kxc3 {[%clk 0:01:34]} 59... c5 {[%clk 0:00:55.7]} 60.
Be2 {[%clk 0:01:31.9]} 60... Bd7 {[%clk 0:00:54.7]} 61. Bd3 {[%clk 0:01:31.3]}
61... Bc6 {[%clk 0:00:53]} 62. Bc2 {[%clk 0:01:29.4]} 62... Bd7 {[%clk
0:00:50.4]} 63. Bd3 {[%clk 0:01:27.6]} 63... Bc6 {[%clk 0:00:49.6]} 64. Bc2
{[%clk 0:01:27.2]} 64... Bd7 {[%clk 0:00:48.8]} 65. Be4 {[%clk 0:01:26.8]} 65...
Be8 {[%clk 0:00:46.9]} 66. Bd3 {[%clk 0:01:23.2]} 66... Bc6 {[%clk 0:00:45.7]}
1/2-1/2

[Event "Live Chess"]
[Site "Chess.com"]
[Date "2024.06.02"]
[Round "-"]
[White "EPotapov05"]
[Black "IgorSchukin"]
[Result "0-1"]
[WhiteElo "1789"]
[BlackElo "1745"]
[TimeControl "300"]
[EndTime "16:36:29 PDT"]
[Termination "IgorSchukin won by resignation"]

1. d4 {[%clk 0:04:54.4]} 1... d5 {[%clk 0:04:59]} 2. c4 {[%clk 0:04:52.8]} 2...
Nf6 {[%clk 0:04:56.4]} 3. cxd5 {[%clk 0:04:51.1]} 3... Nxd5 {[%clk 0:04:54.4]}
4. e4 {[%clk 0:04:47.3]} 4... Nf6 {[%clk 0:04:51.9]} 5. Nc3 {[%clk 0:04:45.8]}
5... e5 {[%clk 0:04:43.3]} 6. Nf3 {[%clk 0:04:38.1]} 6... exd4 {[%clk
0:04:40.9]} 7. Qxd4 {[%clk 0:04:37.1]} 7... Qxd4 {[%clk 0:04:39.2]} 8. Nxd4
{[%clk 0:04:36.1]} 8... Bb4 {[%clk 0:04:35.6]} 9. Bd3 {[%clk 0:04:22.8]} 9... c6
{[%clk 0:04:31.9]} 10. Bd2 {[%clk 0:04:19.9]} 10... O-O {[%clk 0:04:24.6]} 11.
a3 {[%clk 0:04:18.3]} 11... Bc5 {[%clk 0:04:20.1]} 12. Nb3 {[%clk 0:04:16.8]}
12... Bb6 {[%clk 0:04:14.4]} 13. O-O {[%clk 0:04:15.2]} 13... Be6 {[%clk
0:04:11.9]} 14. Nc1 {[%clk 0:04:02.5]} 14... Rd8 {[%clk 0:04:08.9]} 15. Re1
{[%clk 0:03:53]} 15... Nbd7 {[%clk 0:04:05]} 16. Be3 {[%clk 0:03:51.8]} 16...
Ne5 {[%clk 0:04:00.5]} 17. Bc2 {[%clk 0:03:43.6]} 17... Bxe3 {[%clk 0:03:54.3]}
18. Rxe3 {[%clk 0:03:41.1]} 18... Nc4 {[%clk 0:03:46]} 19. Re1 {[%clk
0:03:23.7]} 19... Rd2 {[%clk 0:03:23.4]} 20. Re2 {[%clk 0:02:57]} 20... Rxe2
{[%clk 0:03:17.5]} 21. N1xe2 {[%clk 0:02:56]} 21... Rd8 {[%clk 0:03:09.1]} 22.
b3 {[%clk 0:02:54.7]} 22... Rd2 {[%clk 0:03:00.8]} 23. bxc4 {[%clk 0:02:41]}
23... Rxc2 {[%clk 0:02:58.8]} 24. Rc1 {[%clk 0:02:36.4]} 24... Rxc1+ {[%clk
0:02:56.6]} 25. Nxc1 {[%clk 0:02:35.5]} 25... Bxc4 {[%clk 0:02:55.6]} 0-1

[Event "Live Chess"]
[Site "Chess.com"]
[Date "2024.06.02"]
[Round "-"]
[White "bear856"]
[Black "mychess51"]
[Result "1-0"]
[WhiteElo "2379"]
[BlackElo "1845"]
[TimeControl "300"]
[EndTime "16:37:21 PDT"]
[Termination "bear856 won by resignation"]

1. d4 {[%clk 0:04:57.2]} 1... e6 {[%clk 0:04:59.1]} 2. c4 {[%clk 0:04:55.3]}
2... d5 {[%clk 0:04:59]} 3. Nf3 {[%clk 0:04:53.9]} 3... Nf6 {[%clk 0:04:58.1]}
4. Nc3 {[%clk 0:04:53.3]} 4... Be7 {[%clk 0:04:56.7]} 5. Bg5 {[%clk 0:04:50.4]}
5... O-O {[%clk 0:04:56.1]} 6. e3 {[%clk 0:04:49.2]} 6... Ne4 {[%clk 0:04:53.7]}
7. Bxe7 {[%clk 0:04:47.1]} 7... Qxe7 {[%clk 0:04:52.7]} 8. cxd5 {[%clk
0:04:46.2]} 8... Nxc3 {[%clk 0:04:51.5]} 9. bxc3 {[%clk 0:04:44.5]} 9... exd5
{[%clk 0:04:50.6]} 10. Bd3 {[%clk 0:04:43.3]} 10... Bg4 {[%clk 0:04:48.3]} 11.
O-O {[%clk 0:04:41.9]} 11... Qf6 {[%clk 0:04:46.4]} 12. h3 {[%clk 0:04:38.9]}
12... Bxf3 {[%clk 0:04:45.3]} 13. Qxf3 {[%clk 0:04:37.1]} 13... Qxf3 {[%clk
0:04:44.2]} 14. gxf3 {[%clk 0:04:36.9]} 14... b6 {[%clk 0:04:42.7]} 15. c4
{[%clk 0:04:35.3]} 15... dxc4 {[%clk 0:04:36.8]} 16. Bxc4 {[%clk 0:04:34.2]}
16... Nd7 {[%clk 0:04:35.7]} 17. Rac1 {[%clk 0:04:30.6]} 17... c5 {[%clk
0:04:31.6]} 18. Bb5 {[%clk 0:04:28.7]} 18... Rfd8 {[%clk 0:04:22.5]} 19. Bxd7
{[%clk 0:04:26.6]} 19... Rxd7 {[%clk 0:04:21.6]} 20. dxc5 {[%clk 0:04:26.1]}
20... bxc5 {[%clk 0:04:19.2]} 21. Rxc5 {[%clk 0:04:24.1]} 21... Rd2 {[%clk
0:04:14.9]} 22. Ra5 {[%clk 0:04:22.6]} 22... g6 {[%clk 0:04:10.9]} 23. f4 {[%clk
0:04:17]} 23... Kg7 {[%clk 0:04:08]} 24. Kg2 {[%clk 0:04:15.8]} 24... a6 {[%clk
0:04:00.1]} 25. Kf3 {[%clk 0:04:14.2]} 25... h5 {[%clk 0:03:57.9]} 26. f5 {[%clk
0:04:11.4]} 26... g5 {[%clk 0:03:51.3]} 27. h4 {[%clk 0:04:00.7]} 27... gxh4
{[%clk 0:03:36.8]} 28. Rh1 {[%clk 0:03:58.6]} 28... Rb8 {[%clk 0:03:33.8]} 29.
Rxa6 {[%clk 0:03:47.7]} 29... Rbb2 {[%clk 0:03:28.8]} 30. Rh2 {[%clk 0:03:42.7]}
30... Rxa2 {[%clk 0:03:25.1]} 31. Rxa2 {[%clk 0:03:41.6]} 31... Rxa2 {[%clk
0:03:23.8]} 32. Rxh4 {[%clk 0:03:40.7]} 32... Kh6 {[%clk 0:03:22.9]} 33. Kg3
{[%clk 0:03:37.4]} 33... Ra5 {[%clk 0:03:08]} 34. e4 {[%clk 0:03:35.1]} 34...
Kg5 {[%clk 0:03:03.8]} 35. f3 {[%clk 0:03:27.9]} 35... Ra3 {[%clk 0:02:50.3]}
36. Rh1 {[%clk 0:03:25.8]} 36... f6 {[%clk 0:02:46.3]} 37. Rh2 {[%clk
0:03:24.5]} 37... Rb3 {[%clk 0:02:44.7]} 38. Rg2 {[%clk 0:03:15.4]} 38... Kh6
{[%clk 0:02:32.5]} 39. Kf4 {[%clk 0:03:12.9]} 39... Rb4 {[%clk 0:02:23.5]} 40.
Rg6+ {[%clk 0:03:11.3]} 40... Kh7 {[%clk 0:02:21.4]} 41. Rxf6 {[%clk 0:03:10.3]}
41... h4 {[%clk 0:02:20.7]} 42. Kg5 {[%clk 0:03:07.4]} 42... Rb3 {[%clk
0:02:16]} 43. Rh6+ {[%clk 0:03:05.1]} 43... Kg7 {[%clk 0:02:14.9]} 44. Rxh4
{[%clk 0:03:02.9]} 44... Rxf3 {[%clk 0:02:13.1]} 45. e5 {[%clk 0:03:01.9]} 45...
Re3 {[%clk 0:02:04]} 46. e6 {[%clk 0:03:00.6]} 46... Re1 {[%clk 0:02:01.6]} 47.
f6+ {[%clk 0:02:58.2]} 47... Kg8 {[%clk 0:01:58.8]} 48. Kf5 {[%clk 0:02:52.3]}
48... Rf1+ {[%clk 0:01:54.9]} 49. Rf4 {[%clk 0:02:51.2]} 49... Re1 {[%clk
0:01:51]} 50. Re4 {[%clk 0:02:43.2]} 50... Rf1+ {[%clk 0:01:48.7]} 51. Ke5
{[%clk 0:02:42.3]} 51... Kf8 {[%clk 0:01:45]} 52. Re2 {[%clk 0:02:24.4]} 52...
Rd1 {[%clk 0:01:38]} 53. Rh2 {[%clk 0:02:18.8]} 53... Re1+ {[%clk 0:01:35.9]}
54. Kd5 {[%clk 0:02:17.8]} 54... Rd1+ {[%clk 0:01:34.9]} 55. Kc4 {[%clk
0:02:16.3]} 55... Rc1+ {[%clk 0:01:33.4]} 56. Kd3 {[%clk 0:02:14.2]} 56... Kg8
{[%clk 0:01:30.6]} 57. f7+ {[%clk 0:02:09.2]} 57... Kg7 {[%clk 0:01:24.8]} 58.
Rg2+ {[%clk 0:02:07.9]} 58... Kf8 {[%clk 0:01:23.1]} 59. Rg8+ {[%clk 0:02:06.7]}
59... Ke7 {[%clk 0:01:22.2]} 60. f8=Q+ {[%clk 0:02:05.8]} 60... Kxe6 {[%clk
0:01:22.1]} 61. Rg6+ {[%clk 0:02:02.5]} 1-0

[Event "Live Chess"]
[Site "Chess.com"]
[Date "2024.06.02"]
[Round "-"]
[White "CheckThis4"]
[Black "Frankie_Badacsonyi"]
[Result "1-0"]
[WhiteElo "2693"]
[BlackElo "2432"]
[TimeControl "300"]
[EndTime "16:37:45 PDT"]
[Termination "CheckThis4 won by resignation"]

1. d4 {[%clk 0:04:52.4]} 1... Nf6 {[%clk 0:04:57.7]} 2. Nc3 {[%clk 0:04:45]}
2... d5 {[%clk 0:04:54.7]} 3. Bf4 {[%clk 0:04:43.9]} 3... e6 {[%clk 0:04:53.3]}
4. Nb5 {[%clk 0:04:41.5]} 4... Na6 {[%clk 0:04:52.5]} 5. e3 {[%clk 0:04:39.5]}
5... Be7 {[%clk 0:04:47.5]} 6. Nf3 {[%clk 0:04:36.8]} 6... O-O {[%clk
0:04:46.7]} 7. Be2 {[%clk 0:04:33.9]} 7... c6 {[%clk 0:04:44.5]} 8. Nc3 {[%clk
0:04:31.2]} 8... c5 {[%clk 0:04:40]} 9. O-O {[%clk 0:04:26.4]} 9... Bd7 {[%clk
0:04:37.6]} 10. Ne5 {[%clk 0:04:23.3]} 10... Be8 {[%clk 0:04:36.4]} 11. h3
{[%clk 0:04:17.5]} 11... Nb4 {[%clk 0:04:28.4]} 12. Qd2 {[%clk 0:04:03.8]} 12...
a6 {[%clk 0:04:20.7]} 13. Bf3 {[%clk 0:03:54.8]} 13... Rc8 {[%clk 0:04:18.4]}
14. a3 {[%clk 0:03:49.1]} 14... Nc6 {[%clk 0:04:16.7]} 15. Ne2 {[%clk
0:03:46.5]} 15... Ne4 {[%clk 0:04:00.3]} 16. Bxe4 {[%clk 0:03:42.5]} 16... dxe4
{[%clk 0:04:00.2]} 17. Rfd1 {[%clk 0:03:35.2]} 17... cxd4 {[%clk 0:03:47.3]} 18.
Nxc6 {[%clk 0:03:31.8]} 18... Bxc6 {[%clk 0:03:43.7]} 19. Nxd4 {[%clk 0:03:30]}
19... Bf6 {[%clk 0:03:24.4]} 20. Nxc6 {[%clk 0:03:20.4]} 20... Qxd2 {[%clk
0:03:22.4]} 21. Rxd2 {[%clk 0:03:19.8]} 21... Rxc6 {[%clk 0:03:21.3]} 22. c3
{[%clk 0:03:17.5]} 22... Rfc8 {[%clk 0:03:13.8]} 23. Rad1 {[%clk 0:03:15.6]}
23... h5 {[%clk 0:03:02.8]} 24. g4 {[%clk 0:03:12.2]} 24... hxg4 {[%clk
0:03:01.3]} 25. hxg4 {[%clk 0:03:12.1]} 25... g5 {[%clk 0:02:55.6]} 26. Bg3
{[%clk 0:03:09.3]} 26... Kg7 {[%clk 0:02:54.2]} 27. Kg2 {[%clk 0:03:08.3]} 27...
b5 {[%clk 0:02:51.8]} 28. Rd7 {[%clk 0:03:02.9]} 28... R8c7 {[%clk 0:01:44.3]}
29. Rxc7 {[%clk 0:02:59.5]} 29... Rxc7 {[%clk 0:01:44.2]} 30. Bxc7 {[%clk
0:02:58.2]} 1-0

[Event "Live Chess"]
[Site "Chess.com"]
[Date "2024.06.02"]
[Round "-"]
[White "stevochess11"]
[Black "PaulHumphreys"]
[Result "1-0"]
[WhiteElo "1703"]
[BlackElo "1394"]
[TimeControl "300"]
[EndTime "16:37:53 PDT"]
[Termination "stevochess11 won by resignation"]

1. d4 {[%clk 0:04:57.4]} 1... d5 {[%clk 0:04:57.9]} 2. Nf3 {[%clk 0:04:56.2]}
2... e6 {[%clk 0:04:54]} 3. e3 {[%clk 0:04:55.2]} 3... c5 {[%clk 0:04:51.5]} 4.
Bd3 {[%clk 0:04:54.6]} 4... c4 {[%clk 0:04:49]} 5. Be2 {[%clk 0:04:53.9]} 5...
Nf6 {[%clk 0:04:47.8]} 6. b3 {[%clk 0:04:51.4]} 6... b5 {[%clk 0:04:45.1]} 7. a4
{[%clk 0:04:49.2]} 7... Qa5+ {[%clk 0:04:34.6]} 8. Bd2 {[%clk 0:04:43.5]} 8...
Bb4 {[%clk 0:04:33.9]} 9. c3 {[%clk 0:04:38]} 9... Bd6 {[%clk 0:04:21.6]} 10.
bxc4 {[%clk 0:04:36.1]} 10... bxc4 {[%clk 0:04:16.9]} 11. Ne5 {[%clk 0:04:30.8]}
11... Bd7 {[%clk 0:03:58.9]} 12. Bc1 {[%clk 0:04:26.4]} 12... O-O {[%clk
0:03:45.2]} 13. Nxd7 {[%clk 0:04:17.4]} 13... Nbxd7 {[%clk 0:03:43.3]} 14. Na3
{[%clk 0:04:15.8]} 14... Qxc3+ {[%clk 0:03:36.3]} 15. Bd2 {[%clk 0:04:08.8]}
15... Qb3 {[%clk 0:03:35.1]} 16. Nb5 {[%clk 0:04:03.5]} 16... Qxd1+ {[%clk
0:03:17.4]} 17. Bxd1 {[%clk 0:04:02]} 17... Bb8 {[%clk 0:03:03]} 18. Bb4 {[%clk
0:03:58.1]} 18... Rc8 {[%clk 0:02:56.9]} 19. O-O {[%clk 0:03:46]} 19... a6
{[%clk 0:02:52.2]} 20. Nd6 {[%clk 0:03:30.2]} 20... Bxd6 {[%clk 0:02:41.6]} 21.
Bxd6 {[%clk 0:03:30.1]} 21... Ne4 {[%clk 0:02:40.9]} 22. Bb4 {[%clk 0:03:09.2]}
22... a5 {[%clk 0:02:31.4]} 23. Be1 {[%clk 0:03:04.6]} 23... c3 {[%clk
0:02:28.2]} 24. Bc2 {[%clk 0:03:02.7]} 24... Ndf6 {[%clk 0:02:17.5]} 25. f3
{[%clk 0:02:57.2]} 25... Nd2 {[%clk 0:02:15]} 26. Rf2 {[%clk 0:02:53.9]} 26...
Rab8 {[%clk 0:02:03.1]} 27. Rc1 {[%clk 0:02:50.2]} 27... Nb3 {[%clk 0:01:28.4]}
28. Bxb3 {[%clk 0:02:45.2]} 28... Rxb3 {[%clk 0:01:26.6]} 29. Rfc2 {[%clk
0:02:32.6]} 29... Kf8 {[%clk 0:01:08.6]} 30. Bxc3 {[%clk 0:02:24.6]} 30... Ra3
{[%clk 0:01:03.3]} 31. Bb2 {[%clk 0:02:05.2]} 31... Rxc2 {[%clk 0:00:56.7]} 32.
Bxa3+ {[%clk 0:02:03.8]} 1-0

[Event "Live Chess"]
[Site "Chess.com"]
[Date "2024.06.02"]
[Round "-"]
[White "oscalik"]
[Black "gobbles19"]
[Result "1-0"]
[WhiteElo "2279"]
[BlackElo "2268"]
[TimeControl "300"]
[EndTime "16:38:06 PDT"]
[Termination "oscalik won by resignation"]

1. e4 {[%clk 0:04:56.7]} 1... Nf6 {[%clk 0:04:55.1]} 2. e5 {[%clk 0:04:49.8]}
2... Nd5 {[%clk 0:04:53.8]} 3. Nc3 {[%clk 0:04:46.4]} 3... Nxc3 {[%clk
0:04:50.6]} 4. dxc3 {[%clk 0:04:45]} 4... d6 {[%clk 0:04:50]} 5. Bc4 {[%clk
0:04:42.5]} 5... g6 {[%clk 0:04:45]} 6. Bf4 {[%clk 0:04:39]} 6... Bg7 {[%clk
0:04:43.5]} 7. Qe2 {[%clk 0:04:37.7]} 7... O-O {[%clk 0:04:40.1]} 8. O-O-O
{[%clk 0:04:36.1]} 8... Nc6 {[%clk 0:04:31.8]} 9. Nf3 {[%clk 0:04:18.9]} 9... a6
{[%clk 0:04:28.5]} 10. e6 {[%clk 0:04:11.5]} 10... fxe6 {[%clk 0:04:15.9]} 11.
Bxe6+ {[%clk 0:04:09.9]} 11... Bxe6 {[%clk 0:04:13.5]} 12. Qxe6+ {[%clk
0:04:09.4]} 12... Kh8 {[%clk 0:04:12.8]} 13. g3 {[%clk 0:03:50.6]} 13... Qe8
{[%clk 0:03:30.8]} 14. h4 {[%clk 0:03:45.6]} 14... Rf6 {[%clk 0:03:25.9]} 15.
Qe3 {[%clk 0:03:39.5]} 15... e5 {[%clk 0:03:23.2]} 16. Bg5 {[%clk 0:03:32.7]}
16... Rf8 {[%clk 0:03:18.2]} 17. h5 {[%clk 0:03:23.9]} 17... Qf7 {[%clk
0:03:06.5]} 18. Nh4 {[%clk 0:03:01.7]} 18... gxh5 {[%clk 0:03:00.7]} 19. Rd2
{[%clk 0:02:12]} 19... Qxa2 {[%clk 0:02:54.7]} 20. Rdd1 {[%clk 0:01:55.7]} 20...
Qf7 {[%clk 0:02:35.2]} 21. Rhf1 {[%clk 0:01:50.2]} 21... Rae8 {[%clk 0:02:31.4]}
22. Kb1 {[%clk 0:01:42.3]} 22... Ne7 {[%clk 0:02:28.3]} 23. Qa7 {[%clk
0:01:22.3]} 23... Rb8 {[%clk 0:02:10.5]} 24. f4 {[%clk 0:01:11.6]} 24... Ng6
{[%clk 0:01:52.9]} 25. fxe5 {[%clk 0:01:00.4]} 25... Qxf1 {[%clk 0:01:36.1]} 26.
Rxf1 {[%clk 0:01:00.3]} 26... Rxf1+ {[%clk 0:01:35]} 27. Ka2 {[%clk 0:01:00]}
27... Rff8 {[%clk 0:01:31.4]} 28. e6 {[%clk 0:00:50.6]} 28... Ne5 {[%clk
0:01:15.1]} 29. e7 {[%clk 0:00:42.7]} 29... Rfe8 {[%clk 0:01:14.2]} 30. Nf5
{[%clk 0:00:41.7]} 30... Nc6 {[%clk 0:01:10.7]} 31. Qe3 {[%clk 0:00:38]} 31...
Be5 {[%clk 0:01:08.7]} 32. Qf3 {[%clk 0:00:26.8]} 32... a5 {[%clk 0:00:46.9]}
33. Qxh5 {[%clk 0:00:25.9]} 33... b5 {[%clk 0:00:40]} 34. Qh6 {[%clk 0:00:25.2]}
1-0

[Event "Live Chess"]
[Site "Chess.com"]
[Date "2024.06.02"]
[Round "-"]
[White "ShanthamGrarks"]
[Black "WelshTiger"]
[Result "1-0"]
[WhiteElo "1869"]
[BlackElo "2459"]
[TimeControl "300"]
[EndTime "16:38:35 PDT"]
[Termination "ShanthamGrarks won by checkmate"]

1. d4 {[%clk 0:04:55.7]} 1... d5 {[%clk 0:04:58.4]} 2. Nc3 {[%clk 0:04:55.3]}
2... c6 {[%clk 0:04:54.6]} 3. e4 {[%clk 0:04:53.2]} 3... dxe4 {[%clk 0:04:53.3]}
4. f3 {[%clk 0:04:52.4]} 4... Nf6 {[%clk 0:04:53]} 5. fxe4 {[%clk 0:04:50.1]}
5... e5 {[%clk 0:04:51.6]} 6. d5 {[%clk 0:04:48.6]} 6... Bb4 {[%clk 0:04:49.2]}
7. Bg5 {[%clk 0:04:45.5]} 7... Nbd7 {[%clk 0:04:43.2]} 8. Nf3 {[%clk 0:04:42]}
8... Qa5 {[%clk 0:04:38]} 9. Qd3 {[%clk 0:04:18]} 9... Bxc3+ {[%clk 0:04:32.8]}
10. bxc3 {[%clk 0:04:15.4]} 10... Nxe4 {[%clk 0:04:27.1]} 11. Qxe4 {[%clk
0:04:01.4]} 11... Qxc3+ {[%clk 0:04:26.3]} 12. Kf2 {[%clk 0:03:58.6]} 12... Qxa1
{[%clk 0:04:25]} 13. dxc6 {[%clk 0:03:56.1]} 13... bxc6 {[%clk 0:04:18.6]} 14.
Qxc6 {[%clk 0:03:54.6]} 14... Rb8 {[%clk 0:04:15.7]} 15. Qd6 {[%clk 0:03:33.7]}
15... Qxa2 {[%clk 0:03:56.8]} 16. Qe7# {[%clk 0:03:30.4]} 1-0